lending/lending_fUSD_20250122
["ID","MTS","AMOUNT","RATE_DAILY","PERIOD"]
[349990668,1737553834402,-500.0,0.00020523,2]
[349990669,1737553834411,-500.0,0.00020523,2]
[349990670,1737553834419,-596.83810551,0.00020523,2]
[349990671,1737553834429,-500.0,0.00020523,2]
[349990672,1737553834438,-500.0,0.00020523,2]
[349990673,1737553834448,-500.0,0.00020523,2]
[349990674,1737553834458,-436.24666826,0.00020523,2]
[349990675,1737553834467,-500.0,0.00020523,2]
[349990676,1737553834476,-500.0,0.00020523,2]
[349990677,1737553834485,-500.0,0.00020523,2]
[349990678,1737553834495,-168.44,0.00020584,2]
[349990679,1737553834504,-195.02,0.00020623,2]
[349990680,1737553834513,-500.0,0.00020696,2]
[349990681,1737553834522,-500.0,0.00020696,2]
[349990682,1737553834531,-500.0,0.00020696,2]
[349990683,1737553834541,-500.0,0.00020696,2]
[349990684,1737553834550,-500.0,0.00020696,2]
[349990685,1737553834560,-500.0,0.00020696,2]
[349990686,1737553834569,-500.0,0.00020696,2]
[349990687,1737553834578,-515.24519522,0.00020696,2]
[349990688,1737553834588,-362.26724976,0.00020696,2]
[349990689,1737553834774,-500.0,0.00020696,2]
[349990690,1737553834784,-500.0,0.00020696,2]
[349990691,1737553834793,-500.0,0.00020696,2]
[349990692,1737553834803,-500.0,0.00020696,2]
[349990693,1737553834812,-500.0,0.00020696,2]
[349990694,1737553834821,-500.0,0.00020696,2]
[349990695,1737553834830,-500.0,0.00020696,2]
[349990696,1737553834840,-500.0,0.00020696,2]
[349990697,1737553834849,-500.0,0.00020696,2]
[349990698,1737553834859,-500.0,0.00020696,2]
[349990699,1737553834868,-500.0,0.00020696,2]
[349990700,1737553834877,-500.0,0.00020696,2]
[349990701,1737553834887,-500.0,0.00020696,2]
[349990702,1737553834896,-500.0,0.00020696,2]
[349990703,1737553834905,-500.0,0.00020696,2]
[349990704,1737553834915,-500.0,0.00020696,2]
[349990705,1737553834924,-500.0,0.00020696,2]
[349990706,1737553834933,-500.0,0.00020696,2]
[349990707,1737553834943,-500.0,0.00020696,2]
[349990708,1737553834952,-500.0,0.00020696,2]
[349990709,1737553834961,-361.65277479,0.00020696,2]
[349990710,1737553834970,-537.50521776,0.00020696,2]
[349990711,1737553834979,-500.0,0.00020696,2]
[349990712,1737553834988,-500.0,0.00020696,2]
[349990713,1737553834998,-500.0,0.0002074,2]
[349990714,1737553835007,-371.53,0.00020786,2]
[349990715,1737553835016,-18340.04605381,0.00020788,2]
[349990716,1737553835025,-405.4207811,0.00020789,2]
[349990717,1737553835035,-1731.27439009,0.0002079,2]
[349990718,1737553835045,-1731.27439009,0.00020791,2]
[349990719,1737553835054,-1731.27439009,0.00020792,2]
[349990720,1737553835063,-662.64,0.00020795,2]
[349990721,1737553835072,-500.0,0.00020795,2]
[349990722,1737553835082,-500.0,0.00020795,2]
[349990723,1737553835091,-500.0,0.00020795,2]
[349990724,1737553835100,-1392.92,0.00020795,2]
[349990725,1737553835109,-845.83,0.00020795,2]
[349990726,1737553835118,-1020.23,0.00020795,2]
[349990727,1737553835127,-1293.35,0.00020795,2]
[349990728,1737553835136,-500.0,0.00020795,2]
[349990729,1737553835145,-923.15,0.00020795,2]
[349990730,1737553835155,-648.33,0.00020795,2]
[349990731,1737553835164,-500.0,0.00020795,2]
[349990732,1737553835173,-1113.76,0.00020795,2]
[349990733,1737553835182,-556.67,0.00020795,2]
[349990734,1737553835192,-694.81,0.00020795,2]
[349990735,1737553835201,-1310.54,0.00020795,2]
[349990736,1737553835211,-612.65,0.00020795,2]
[349990737,1737553835220,-1616.18,0.00020795,2]
[349990738,1737553835229,-500.0,0.00020795,2]
[349990739,1737553835238,-500.0,0.00020795,2]
[349990740,1737553835247,-500.0,0.00020795,2]
[349990741,1737553835257,-500.0,0.00020795,2]
[349990742,1737553835266,-500.0,0.00020795,2]
[349990743,1737553835275,-500.0,0.00020795,2]
[349990744,1737553835284,-500.0,0.00020795,2]
[349990745,1737553835294,-500.0,0.00020795,2]
[349990746,1737553835303,-730.74,0.00020795,2]
[349990747,1737553835312,-1947.9,0.00020795,2]
[349990748,1737553835320,-500.0,0.00020795,2]
[349990749,1737553835330,-500.0,0.00020795,2]
[349990750,1737553835339,-500.0,0.00020796,2]
[349990751,1737553835348,-500.0,0.00020796,2]
[349990752,1737553835358,-500.0,0.00020796,2]
[349990753,1737553835367,-500.0,0.00020796,2]
[349990754,1737553835376,-500.0,0.00020796,2]
[349990755,1737553835386,-500.0,0.00020796,2]
[349990756,1737553835395,-500.0,0.00020796,2]
[349990757,1737553835404,-500.0,0.00020796,2]
[349990758,1737553835413,-500.0,0.00020796,2]
[349990759,1737553835423,-500.0,0.00020796,2]
[349990760,1737553835433,-500.0,0.00020796,2]
[349990761,1737553835443,-503.09969464,0.00020796,2]
[349990762,1737553835453,-500.0,0.00020796,2]
[349990763,1737553835462,-500.0,0.00020796,2]
[349990764,1737553835472,-513.63049392,0.00020796,2]
[349990765,1737553835481,-518.64308734,0.00020796,2]
[349990766,1737553835492,-473.34814452,0.00020796,2]
[349990767,1737553835506,-500.0,0.00020796,2]
[349990768,1737553835516,-500.0,0.00020796,2]
[349990769,1737553835526,-500.0,0.00020796,2]
[349990770,1737553835535,-500.0,0.00020796,2]
[349990771,1737553835546,-508.65621369,0.00020796,2]
[349990772,1737553835555,-500.0,0.00020796,2]
[349990773,1737553835565,-1082.09,0.00020796,2]
[349990774,1737553835575,-500.0,0.00020796,2]
[349990775,1737553835584,-819.42,0.00020796,2]
[349990776,1737553835596,-500.0,0.00020796,2]
[349990777,1737553835610,-1345.57,0.00020796,2]
[349990778,1737553835628,-500.0,0.00020796,2]
[349990779,1737553835638,-500.0,0.00020796,2]
[349990780,1737553835647,-626.334941,0.00020796,2]
[349990781,1737553835656,-500.0,0.00020796,2]
[349990782,1737553835665,-700.65,0.00020796,2]
[349990783,1737553835674,-298.17182678,0.00020796,2]
[349990784,1737553835684,-158.949648,0.00020796,2]
[349990785,1737553835693,-500.0,0.00020796,2]
[349990786,1737553835703,-500.0,0.00020796,2]
[349990787,1737553835712,-500.0,0.00020796,2]
[349990788,1737553835721,-500.0,0.00020796,2]
[349990789,1737553835731,-159.458686,0.00020796,2]
[349990790,1737553835740,-510.34421846,0.00020796,2]
[349990791,1737553835749,-500.0,0.00020796,2]
[349990792,1737553835758,-500.0,0.00020796,2]
[349990793,1737553835767,-754.99,0.00020796,2]
[349990794,1737553835776,-500.0,0.00020796,2]
[349990795,1737553835785,-500.0,0.00020796,2]
[349990796,1737553835795,-500.0,0.00020796,2]
[349990797,1737553835805,-500.0,0.00020796,2]
[349990798,1737553835814,-526.93,0.00020796,2]
[349990799,1737553835823,-431.356282,0.00020796,2]
[349990800,1737553835833,-500.0,0.00020796,2]
[349990801,1737553835842,-500.0,0.00020796,2]
[349990802,1737553835851,-500.0,0.00020796,2]
[349990803,1737553835860,-371.42191083,0.00020796,2]
[349990804,1737553835869,-500.0,0.00020796,2]
[349990805,1737553835878,-500.0,0.00020796,2]
[349990806,1737553835887,-675.73,0.00020796,2]
[349990807,1737553835896,-573.27,0.00020796,2]
[349990808,1737553835905,-510.6058835,0.00020796,2]
[349990809,1737553835915,-500.0,0.00020796,2]
[349990810,1737553835924,-500.0,0.00020796,2]
[349990811,1737553835933,-909.78,0.00020796,2]
[349990812,1737553835943,-500.0,0.00020796,2]
[349990813,1737553835953,-514.04329541,0.00020796,2]
[349990814,1737553835962,-521.6,0.00020796,2]
[349990815,1737553835972,-500.0,0.00020796,2]
[349990816,1737553835982,-500.0,0.00020796,2]
[349990817,1737553835991,-500.0,0.00020796,2]
[349990818,1737553836000,-541.58,0.00020796,2]
[349990819,1737553836009,-500.0,0.00020796,2]
[349990820,1737553836018,-500.0,0.00020796,2]
[349990821,1737553836028,-500.0,0.00020796,2]
[349990822,1737553836037,-500.0,0.00020796,2]
[349990823,1737553836046,-500.0,0.00020796,2]
[349990824,1737553836055,-500.0,0.00020796,2]
[349990825,1737553836064,-500.0,0.00020796,2]
[349990826,1737553836074,-1549.44,0.00020796,2]
[349990827,1737553836083,-500.0,0.00020796,2]
[349990828,1737553836092,-374.58322504,0.00020796,2]
[349990829,1737553836101,-404.61051367,0.00020796,2]
[349990830,1737553836111,-1018.39,0.00020796,2]
[349990831,1737553836120,-500.0,0.00020796,2]
[349990832,1737553836129,-450.97596156,0.00020796,2]
[349990833,1737553836139,-662.83,0.00020796,2]
[349990834,1737553836148,-534.07,0.00020796,2]
[349990835,1737553836157,-500.0,0.00020796,2]
[349990836,1737553836167,-500.0,0.00020796,2]
[349990837,1737553836176,-1287.57,0.00020796,2]
[349990838,1737553836185,-1340.69,0.00020796,2]
[349990839,1737553836196,-500.0,0.00020796,2]
[349990840,1737553836207,-503.10361774,0.00020796,2]
[349990841,1737553836217,-500.0,0.00020796,2]
[349990842,1737553836227,-504.27271458,0.00020796,2]
[349990843,1737553836237,-500.0,0.00020796,2]
[349990844,1737553836246,-500.0,0.00020796,2]
[349990845,1737553836255,-500.0,0.00020796,2]
[349990846,1737553836265,-502.90058252,0.00020796,2]
[349990847,1737553836275,-500.0,0.00020796,2]
[349990848,1737553836284,-578.91,0.00020796,2]
[349990849,1737553836293,-650.0,0.00020796,2]
[349990850,1737553836303,-500.0,0.00020796,2]
[349990851,1737553836312,-500.0,0.00020796,2]
[349990852,1737553836322,-500.0,0.00020796,2]
[349990853,1737553836331,-500.0,0.00020796,2]
[349990854,1737553836340,-500.0,0.00020796,2]
[349990855,1737553836349,-500.0,0.00020796,2]
[349990856,1737553836359,-1820.91,0.00020796,2]
[349990857,1737553836369,-500.0,0.00020796,2]
[349990858,1737553836379,-528.99601702,0.00020796,2]
[349990859,1737553836388,-500.0,0.00020796,2]
[349990860,1737553836398,-500.0,0.00020796,2]
[349990861,1737553836407,-500.0,0.00020796,2]
[349990862,1737553836416,-500.0,0.00020796,2]
[349990863,1737553836426,-500.0,0.00020796,2]
[349990864,1737553836435,-578.27,0.00020796,2]
[349990865,1737553836447,-500.0,0.00020796,2]
[349990866,1737553836456,-500.0,0.00020796,2]
[349990867,1737553836466,-519.44377259,0.00020796,2]
[349990868,1737553836476,-500.0,0.00020796,2]
[349990869,1737553836486,-504.2698453,0.00020796,2]
[349990870,1737553836496,-500.0,0.00020796,2]
[349990871,1737553836505,-500.0,0.00020796,2]
[349990872,1737553836516,-500.0,0.00020796,2]
[349990873,1737553836526,-500.0,0.00020796,2]
[349990874,1737553836537,-500.0,0.00020796,2]
[349990875,1737553836547,-200.0,0.00020796,2]
[349990876,1737553836558,-200.0,0.00020797,2]
[349990877,1737553836567,-500.0,0.00020797,2]
[349990878,1737553836578,-500.0,0.00020797,2]
[349990879,1737553836587,-554.88,0.00020797,2]
[349990880,1737553836596,-550.28858612,0.00020797,2]
[349990881,1737553836608,-517.57247247,0.00020797,2]
[349990882,1737553836619,-500.0,0.00020797,2]
[349990883,1737553836629,-500.0,0.00020797,2]
[349990884,1737553836638,-500.0,0.00020797,2]
[349990885,1737553836647,-500.0,0.00020797,2]
[349990886,1737553836658,-500.0,0.00020797,2]
[349990887,1737553836668,-500.0,0.00020797,2]
[349990888,1737553836678,-500.0,0.00020797,2]
[349990889,1737553836688,-500.0,0.00020797,2]
[349990890,1737553836701,-500.0,0.00020797,2]
[349990891,1737553836710,-500.0,0.00020797,2]
[349990892,1737553836719,-500.0,0.00020797,2]
[349990893,1737553836728,-500.0,0.00020797,2]
[349990894,1737553836738,-500.0,0.00020797,2]
[349990895,1737553836747,-500.0,0.00020797,2]
[349990896,1737553836756,-500.0,0.00020797,2]
[349990897,1737553836765,-500.0,0.00020797,2]
[349990898,1737553836774,-500.0,0.00020797,2]
[349990899,1737553836784,-500.0,0.00020797,2]
[349990900,1737553836793,-500.0,0.00020797,2]
[349990901,1737553836803,-500.0,0.00020797,2]
[349990902,1737553836812,-500.0,0.00020797,2]
[349990903,1737553836821,-500.0,0.00020797,2]
[349990904,1737553836831,-500.0,0.00020797,2]
[349990905,1737553836840,-500.0,0.00020797,2]
[349990906,1737553836849,-500.0,0.00020797,2]
[349990907,1737553836859,-500.0,0.00020797,2]
[349990908,1737553836868,-333.31336951,0.00020797,2]
[349990909,1737553836892,-174.57533673,0.00020797,2]
[349990910,1737553836901,-500.0,0.00020797,2]
[349990911,1737553836911,-500.0,0.00020797,2]
[349990912,1737553836920,-500.0,0.00020797,2]
[349990913,1737553836929,-500.0,0.00020797,2]
[349990914,1737553836938,-500.0,0.00020797,2]
[349990915,1737553836949,-465.82466327,0.00020797,2]
[349990923,1737553837718,-535.08769391,0.00020793,2]
[349990928,1737553837779,-816.16973129,0.00020793,2]
[349990929,1737553837789,-200.48480433,0.00020796,2]
[349990930,1737553837800,-299.51519567,0.00020796,2]
[349990931,1737553837810,-34.17533673,0.00020797,2]
[349990932,1737553837820,-500.0,0.00020797,2]
[349990933,1737553837830,-500.0,0.00020797,2]
[349990934,1737553837840,-500.0,0.00020797,2]
[349990935,1737553837849,-500.0,0.00020797,2]
[349990936,1737553837859,-500.0,0.00020797,2]
[349990937,1737553837870,-519.8,0.00020797,2]
[349990938,1737553837879,-500.0,0.00020797,2]
[349990939,1737553837889,-327.3094676,0.00020797,2]
[349990940,1737553838013,-172.6905324,0.00020797,2]
[349990941,1737553838024,-500.0,0.00020797,2]
[349990942,1737553838035,-502.74,0.00020797,2]
[349990943,1737553838044,-500.0,0.00020797,2]
[349990944,1737553838055,-500.0,0.00020797,2]
[349990945,1737553838065,-500.0,0.00020797,2]
[349990946,1737553838074,-500.0,0.00020797,2]
[349990947,1737553838084,-500.0,0.00020797,2]
[349990948,1737553838093,-510.94447008,0.00020797,2]
[349990949,1737553838103,-500.0,0.00020797,2]
[349990950,1737553838112,-500.0,0.00020797,2]
[349990951,1737553838122,-500.0,0.00020797,2]
[349990952,1737553838132,-500.0,0.00020797,2]
[349990953,1737553838141,-565.20844334,0.00020797,2]
[349990954,1737553838150,-500.0,0.00020797,2]
[349990955,1737553838160,-500.0,0.00020797,2]
[349990956,1737553838169,-500.0,0.00020797,2]
[349990957,1737553838178,-500.0,0.00020797,2]
[349990958,1737553838188,-500.0,0.00020797,2]
[349990959,1737553838197,-500.0,0.00020797,2]
[349990960,1737553838207,-500.0,0.00020797,2]
[349990961,1737553838216,-500.0,0.00020797,2]
[349990962,1737553838225,-500.0,0.00020797,2]
[349990963,1737553838235,-500.0,0.00020797,2]
[349990964,1737553838244,-500.0,0.00020797,2]
[349990965,1737553838253,-500.0,0.00020797,2]
[349990966,1737553838262,-500.0,0.00020797,2]
[349990967,1737553838271,-500.0,0.00020797,2]
[349990968,1737553838280,-500.0,0.00020797,2]
[349990969,1737553838289,-500.0,0.00020797,2]
[349990970,1737553838298,-500.0,0.00020797,2]
[349990972,1737553838308,-500.0,0.00020797,2]
[349990973,1737553838317,-507.69444921,0.00020797,2]
[349990974,1737553838325,-500.0,0.00020797,2]
[349990975,1737553838334,-360.6,0.00020797,2]
[349990976,1737553838343,-500.0,0.00020797,2]
[349990977,1737553838352,-561.69,0.00020797,2]
[349990978,1737553838363,-500.0,0.00020797,2]
[349990979,1737553838376,-500.0,0.00020797,2]
[349990980,1737553838386,-500.0,0.00020797,2]
[349990981,1737553838396,-500.0,0.00020797,2]
[349990982,1737553838405,-500.0,0.00020797,2]
[349990983,1737553838415,-500.0,0.00020797,2]
[349990984,1737553838424,-500.0,0.00020797,2]
[349990985,1737553838433,-500.0,0.00020797,2]
[349990986,1737553838442,-521.94481643,0.00020797,2]
[349990987,1737553838453,-500.0,0.00020797,2]
[349990988,1737553838462,-500.0,0.00020797,2]
[349990989,1737553838471,-500.0,0.00020797,2]
[349990990,1737553838481,-500.0,0.00020797,2]
[349990991,1737553838490,-500.0,0.00020797,2]
[349990992,1737553838499,-500.0,0.00020797,2]
[349990993,1737553838508,-500.0,0.00020797,2]
[349990994,1737553838518,-500.0,0.00020797,2]
[349990995,1737553838527,-264.11,0.00020797,2]
[349990996,1737553838536,-200.0,0.000208,2]
[349990997,1737553838545,-300.0,0.000208,7]
[349990998,1737553838554,-406.4745265,0.00020804,2]
[349990999,1737553838564,-200.0,0.00020823,2]
[349991000,1737553838573,-18340.04605381,0.00020831,2]
[349991001,1737553838582,-17893.85551716,0.00020839,2]
[349991002,1737553838594,-446.19053665,0.00020839,2]
[349991003,1737553838603,-1351.2574252,0.00020847,2]
[349991004,1737553838616,-200.0,0.0002085,2]
[349991005,1737553838625,-200.0,0.0002087,14]
[349991006,1737553838635,-328.40538946,0.00020871,2]
[349991007,1737553838644,-502.52608194,0.00020877,2]
[349991008,1737553838654,-502.82284699,0.00020877,2]
[349991009,1737553838663,-399.20812514,0.00020877,2]
[349991010,1737553838672,-500.0,0.00020877,2]
[349991011,1737553838683,-502.86736991,0.00020877,2]
[349991012,1737553838693,-500.0,0.00020877,2]
[349991013,1737553838704,-500.0,0.00020877,2]
[349991014,1737553838713,-500.0,0.00020877,2]
[349991015,1737553838723,-502.73354237,0.00020877,2]
[349991016,1737553838732,-500.0,0.00020877,2]
[349991017,1737553838741,-502.17049332,0.00020877,2]
[349991018,1737553838752,-500.0,0.00020877,2]
[349991019,1737553838761,-500.0,0.00020877,2]
[349991020,1737553838770,-500.0,0.00020877,2]
[349991021,1737553838779,-500.0,0.00020877,2]
[349991022,1737553838788,-598.57146319,0.00020877,2]
[349991023,1737553838798,-500.0,0.00020877,2]
[349991024,1737553838807,-503.40191725,0.00020877,2]
[349991025,1737553838816,-501.58991844,0.00020877,2]
[349991026,1737553838825,-500.0,0.00020877,2]
[349991027,1737553838835,-504.74584264,0.00020877,2]
[349991028,1737553838845,-500.0,0.00020877,2]
[349991029,1737553838862,-506.30077019,0.00020877,2]
[349991030,1737553838871,-503.137923,0.00020877,2]
[349991031,1737553838880,-500.0,0.00020877,2]
[349991032,1737553838889,-500.0,0.00020877,2]
[349991033,1737553838898,-501.34505423,0.00020877,2]
[349991034,1737553838907,-341.76645373,0.00020877,2]
[349991035,1737553838916,-501.86880233,0.00020877,2]
[349991036,1737553838926,-213.98416567,0.00020877,2]
[349991037,1737553838935,-134.22997092,0.00020877,2]
[349991038,1737553838948,-367.85916417,0.00020877,2]
[349991039,1737553838957,-505.14550335,0.00020877,2]
[349991040,1737553838967,-504.32622381,0.00020877,2]
[349991041,1737553838976,-500.0,0.00020877,2]
[349991042,1737553838985,-505.63220965,0.00020877,2]
[349991043,1737553838998,-500.0,0.00020877,2]
[349991044,1737553839011,-507.21692308,0.00020877,2]
[349991045,1737553839021,-405.4207811,0.00020877,2]
[349991046,1737553839031,-1521.73419484,0.00020877,2]
[349991047,1737553839043,-16818.31185897,0.00020877,2]
[349991048,1737553839052,-503.39868062,0.00020878,2]
[349991049,1737553839062,-503.14566935,0.00020878,2]
[349991050,1737553839072,-501.67710537,0.00020878,2]
[349991051,1737553839082,-502.23657365,0.00020878,2]
[349991052,1737553839093,-201.30616063,0.00020878,2]
[349991053,1737553839102,-501.22400596,0.00020878,2]
[349991054,1737553839111,-501.95728721,0.00020878,2]
[349991055,1737553839120,-501.56075317,0.00020878,2]
[349991056,1737553839129,-500.0,0.00020878,2]
[349991057,1737553839139,-500.0,0.00020878,2]
[349991058,1737553839149,-501.76178357,0.00020878,2]
[349991059,1737553839158,-503.04960206,0.00020878,2]
[349991060,1737553839168,-500.0,0.00020878,2]
[349991061,1737553839178,-504.67377525,0.00020878,2]
[349991062,1737553839187,-500.83039609,0.00020878,2]
[349991063,1737553839198,-500.0,0.00020878,2]
[349991064,1737553839207,-405.4207811,0.00020878,2]
[349991065,1737553839216,-204.14460599,0.00020882,2]
[349991066,1737553839227,-1351.2574252,0.00020885,2]
[349991067,1737553839236,-1731.27439009,0.00020887,2]
[349991068,1737553839411,-204.14460599,0.00020888,2]
[349991069,1737553839420,-200.0,0.00020898,2]
[349991070,1737553839431,-700.0,0.000209,7]
[349991071,1737553839441,-208.24391113,0.000209,2]
[349991072,1737553839451,-204.14460599,0.0002091,2]
[349991073,1737553839460,-1351.2574252,0.0002091,2]
[349991074,1737553839470,-18340.04605381,0.00020912,2]
[349991075,1737553839480,-200.0,0.00020916,2]
[349991076,1737553839489,-405.4207811,0.0002092,2]
[349991077,1737553839498,-1731.27439009,0.00020921,2]
[349991078,1737553839508,-1351.2574252,0.00020926,2]
[349991079,1737553839517,-204.14460599,0.00020926,2]
[349991080,1737553839527,-204.14460599,0.00020934,2]
[349991081,1737553839537,-405.4207811,0.00020937,2]
[349991082,1737553839547,-150.61,0.00020968,2]
[349991083,1737553839557,-500.0,0.00020969,2]
[349991085,1737553839567,-500.0,0.00020969,2]
[349991087,1737553839576,-500.0,0.00020969,2]
[349991088,1737553839586,-500.0,0.00020969,2]
[349991089,1737553839596,-500.0,0.00020969,2]
[349991090,1737553839606,-500.0,0.00020969,2]
[349991091,1737553839619,-500.0,0.00020969,2]
[349991092,1737553839628,-500.0,0.00020969,2]
[349991094,1737553839638,-500.0,0.00020969,2]
[349991096,1737553839648,-500.0,0.00020969,2]
[349991098,1737553839658,-500.0,0.00020969,2]
[349991100,1737553839668,-500.0,0.00020969,2]
[349991102,1737553839677,-505.48937043,0.00020969,2]
[349991104,1737553839687,-500.0,0.00020969,2]
[349991106,1737553839700,-500.0,0.00020969,2]
[349991108,1737553839710,-500.0,0.00020969,2]
[349991110,1737553839719,-500.0,0.00020969,2]
[349991112,1737553839729,-500.0,0.00020969,2]
[349991114,1737553839739,-500.0,0.00020969,2]
[349991116,1737553839748,-528.43,0.00020969,2]
[349991118,1737553839758,-500.0,0.00020969,2]
[349991121,1737553839768,-500.0,0.00020969,2]
[349991123,1737553839777,-500.0,0.00020969,2]
[349991125,1737553839788,-155.54175711,0.00020969,2]
[349991127,1737553839797,-500.0,0.00020969,2]
[349991129,1737553839807,-500.0,0.00020969,2]
[349991132,1737553839816,-500.0,0.00020969,2]
[349991134,1737553839825,-500.0,0.00020969,2]
[349991136,1737553839834,-500.0,0.00020969,2]
[349991139,1737553839844,-500.0,0.00020969,2]
[349991141,1737553839853,-500.0,0.00020969,2]
[349991144,1737553839862,-456.14513343,0.00020969,2]
[349991146,1737553839874,-43.85486657,0.00020969,2]
[349991148,1737553839883,-500.0,0.00020969,2]
[349991150,1737553839895,-500.0,0.00020969,2]
[349991152,1737553839904,-500.0,0.00020969,2]
[349991154,1737553839914,-500.0,0.00020969,2]
[349991156,1737553839924,-601.52,0.00020969,2]
[349991158,1737553839933,-500.0,0.00020969,2]
[349991160,1737553839942,-500.0,0.00020969,2]
[349991162,1737553839953,-500.0,0.00020969,2]
[349991164,1737553839963,-617.56,0.00020969,2]
[349991166,1737553839972,-634.8,0.00020969,2]
[349991168,1737553839981,-500.0,0.00020969,2]
[349991170,1737553839991,-500.0,0.00020969,2]
[349991172,1737553840000,-500.0,0.00020969,2]
[349991174,1737553840009,-500.0,0.00020969,2]
[349991175,1737553840019,-500.0,0.00020969,2]
[349991176,1737553840028,-500.0,0.00020969,2]
[349991177,1737553840037,-633.19,0.00020969,2]
[349991178,1737553840047,-500.0,0.00020969,2]
[349991179,1737553840056,-618.87111228,0.00020969,2]
[349991180,1737553840065,-500.0,0.00020969,2]
[349991181,1737553840074,-500.0,0.00020969,2]
[349991182,1737553840084,-500.0,0.00020969,2]
[349991183,1737553840093,-500.0,0.00020969,2]
[349991184,1737553840102,-500.0,0.00020969,2]
[349991185,1737553840115,-500.0,0.00020969,2]
[349991186,1737553840127,-500.0,0.00020969,2]
[349991187,1737553840136,-500.0,0.00020969,2]
[349991188,1737553840146,-518.0,0.00020969,2]
[349991189,1737553840155,-500.0,0.00020969,2]
[349991190,1737553840165,-500.0,0.00020969,2]
[349991191,1737553840174,-500.0,0.00020969,2]
[349991192,1737553840184,-38.76356515,0.00020969,2]
[349991193,1737553840532,-331.8624,0.00020969,2]
[349991194,1737553840543,-129.37403485,0.00020969,2]
[349991195,1737553840552,-500.0,0.00020969,2]
[349991196,1737553840561,-500.0,0.00020969,2]
[349991197,1737553840570,-500.0,0.00020969,2]
[349991198,1737553840579,-84.42596515,0.00020969,2]
[349991199,1737553840590,-415.57403485,0.00020969,2]
[349991200,1737553840599,-500.0,0.00020969,2]
[349991201,1737553840614,-500.0,0.00020969,2]
[349991202,1737553840623,-500.0,0.00020969,2]
[349991203,1737553840632,-500.0,0.00020969,2]
[349991204,1737553840641,-500.0,0.00020969,2]
[349991205,1737553840650,-500.0,0.00020969,2]
[349991206,1737553840659,-500.0,0.00020969,2]
[349991207,1737553840668,-500.0,0.00020969,2]
[349991208,1737553840677,-500.0,0.00020969,2]
[349991209,1737553840686,-339.42596515,0.00020969,2]
[349991210,1737553841247,-160.57403485,0.00020969,2]
[349991211,1737553841257,-714.69,0.00020969,2]
[349991212,1737553841266,-500.0,0.00020969,2]
[349991213,1737553841277,-500.0,0.00020969,2]
[349991214,1737553841286,-732.69,0.00020969,2]
[349991215,1737553841295,-500.0,0.00020969,2]
[349991216,1737553841304,-526.96,0.00020969,2]
[349991217,1737553841313,-924.19,0.00020969,2]
[349991218,1737553841322,-500.0,0.00020969,2]
[349991219,1737553841331,-773.57,0.00020969,2]
[349991220,1737553841341,-500.0,0.00020969,2]
[349991221,1737553841350,-698.76,0.00020969,2]
[349991222,1737553841359,-500.0,0.00020969,2]
[349991223,1737553841368,-500.0,0.00020969,2]
[349991224,1737553841377,-577.01,0.00020969,2]